[Event "*** Titled Tuesday Blitz"]
[Site "Chess.com"]
[Date "2019.02.05"]
[Round "9"]
[White "Vugar_Manafov"]
[Black "TheBigBadChessDad"]
[Result "1/2-1/2"]
[WhiteElo "2360"]
[BlackElo "2289"]
[TimeControl "180+2"]
[EndTime "15:15:26 PST"]
[Termination "Game drawn by agreement"]

1. Nf3 {[%clk 0:03:01.9]} 1... d5 {[%clk 0:03:00.6]} 2. g3 {[%clk 0:03:02.6]}
2... c6 {[%clk 0:02:58.7]} 3. Bg2 {[%clk 0:03:04.1]} 3... g6 {[%clk 0:03:00.1]}
4. O-O {[%clk 0:03:03.5]} 4... Bg7 {[%clk 0:03:01.2]} 5. d3 {[%clk 0:03:02.1]}
5... e5 {[%clk 0:02:58.1]} 6. Nc3 {[%clk 0:03:03]} 6... Ne7 {[%clk 0:02:45.3]}
7. e4 {[%clk 0:03:01.8]} 7... d4 {[%clk 0:02:46]} 8. Ne2 {[%clk 0:03:01.7]} 8...
O-O {[%clk 0:02:45.5]} 9. Nd2 {[%clk 0:03:03.6]} 9... c5 {[%clk 0:02:40.8]} 10.
f4 {[%clk 0:03:02.6]} 10... f6 {[%clk 0:02:39.3]} 11. h3 {[%clk 0:02:58.8]}
11... Nbc6 {[%clk 0:02:37.8]} 12. g4 {[%clk 0:02:52.8]} 12... g5 {[%clk
0:02:30.7]} 13. f5 {[%clk 0:02:47.5]} 13... a6 {[%clk 0:02:18.5]} 14. a4 {[%clk
0:02:45.8]} 14... b6 {[%clk 0:02:18.3]} 15. h4 {[%clk 0:02:36.6]} 15... h6
{[%clk 0:02:15.8]} 16. hxg5 {[%clk 0:02:31.7]} 16... hxg5 {[%clk 0:02:16.2]} 17.
Nf3 {[%clk 0:02:33.6]} 17... Bh6 {[%clk 0:01:50.8]} 18. Kf2 {[%clk 0:02:20.2]}
18... Kf7 {[%clk 0:01:43.8]} 19. Rh1 {[%clk 0:02:14.3]} 19... Rh8 {[%clk
0:01:41.3]} 20. Rh5 {[%clk 0:02:10.4]} 20... Ng8 {[%clk 0:01:40.1]} 21. Qh1
{[%clk 0:02:04]} 21... Qf8 {[%clk 0:01:18.8]} 22. Ng3 {[%clk 0:01:50.3]} 22...
Bd7 {[%clk 0:00:48.7]} 23. Nxg5+ {[%clk 0:01:32.9]} 23... fxg5 {[%clk
0:00:46.1]} 24. Bxg5 {[%clk 0:01:34.8]} 24... Qg7 {[%clk 0:00:36.3]} 25. Bxh6
{[%clk 0:01:30.3]} 25... Rxh6 {[%clk 0:00:36]} 26. g5 {[%clk 0:01:29.9]} 26...
Rxh5 {[%clk 0:00:26.9]} 27. Qxh5+ {[%clk 0:01:31.8]} 27... Kf8 {[%clk
0:00:24.6]} 28. f6 {[%clk 0:01:30.5]} 28... Qf7 {[%clk 0:00:21.3]} 29. Qh8
{[%clk 0:01:26.5]} 29... Bg4 {[%clk 0:00:15.5]} 30. Rf1 {[%clk 0:01:21]} 30...
b5 {[%clk 0:00:14.8]} 31. Kg1 {[%clk 0:01:21]} 31... bxa4 {[%clk 0:00:15.2]} 32.
g6 {[%clk 0:01:21.6]} 32... Qxg6 {[%clk 0:00:14.4]} 33. f7 {[%clk 0:01:21.7]}
33... Ke7 {[%clk 0:00:14.9]} 34. fxg8=N+ {[%clk 0:00:59.5]} 34... Rxg8 {[%clk
0:00:16.8]} 35. Qh4+ {[%clk 0:01:00.6]} 35... Kd7 {[%clk 0:00:15.4]} 36. Rf6
{[%clk 0:01:01.8]} 36... Qg7 {[%clk 0:00:14.6]} 37. Rh6 {[%clk 0:00:58.8]} 37...
Kc8 {[%clk 0:00:14.8]} 38. Rh7 {[%clk 0:00:58.5]} 38... Qg5 {[%clk 0:00:16.1]}
39. Qxg5 {[%clk 0:00:56.6]} 39... Rxg5 {[%clk 0:00:18]} 40. Kf2 {[%clk
0:00:50.6]} 40... Bd1 {[%clk 0:00:19.1]} 41. Bh3+ {[%clk 0:00:50.5]} 41... Kb8
{[%clk 0:00:20.2]} 42. Bd7 {[%clk 0:00:51.9]} 42... Nb4 {[%clk 0:00:19]} 43.
Bxa4 {[%clk 0:00:53.8]} 43... Bxc2 {[%clk 0:00:19.7]} 44. Bxc2 {[%clk
0:00:54.9]} 44... Nxc2 {[%clk 0:00:21.4]} 45. Nf5 {[%clk 0:00:56.1]} 45... Nb4
{[%clk 0:00:21.1]} 46. Nd6 {[%clk 0:00:57.6]} 46... Nxd3+ {[%clk 0:00:22.1]} 47.
Ke2 {[%clk 0:00:57.1]} 47... Nf4+ {[%clk 0:00:23.3]} 48. Kf3 {[%clk 0:00:57.7]}
48... Rg6 {[%clk 0:00:22.9]} 49. Rb7+ {[%clk 0:00:58.6]} 49... Ka8 {[%clk
0:00:23.7]} 50. Rb6 {[%clk 0:01:00.5]} 50... Ka7 {[%clk 0:00:24.4]} 51. Nc8+
{[%clk 0:01:00.5]} 51... Ka8 {[%clk 0:00:25.2]} 52. Nd6 {[%clk 0:01:00.5]} 52...
Rxd6 {[%clk 0:00:21.7]} 53. Rxd6 {[%clk 0:01:00.4]} 53... Kb7 {[%clk 0:00:22.7]}
54. b3 {[%clk 0:01:00.2]} 54... a5 {[%clk 0:00:22.6]} 55. Kf2 {[%clk 0:00:43.2]}
55... a4 {[%clk 0:00:23.8]} 56. bxa4 {[%clk 0:00:45.1]} 56... c4 {[%clk
0:00:25.2]} 57. Ke1 {[%clk 0:00:47]} 57... c3 {[%clk 0:00:25.4]} 58. a5 {[%clk
0:00:40.2]} 58... d3 {[%clk 0:00:26]} 59. a6+ {[%clk 0:00:42.1]} 59... Ka7
{[%clk 0:00:26.9]} 60. Kd1 {[%clk 0:00:42.9]} 60... c2+ {[%clk 0:00:22.5]} 61.
Kd2 {[%clk 0:00:42.9]} 61... Ne2 {[%clk 0:00:22.9]} 62. Rc6 {[%clk 0:00:43.8]}
62... c1=Q+ {[%clk 0:00:24]} 63. Rxc1 {[%clk 0:00:43.4]} 63... Nxc1 {[%clk
0:00:25.2]} 64. Kxc1 {[%clk 0:00:45]} 64... Kxa6 {[%clk 0:00:27.1]} 65. Kd2
{[%clk 0:00:46.5]} 65... Kb5 {[%clk 0:00:28.6]} 66. Kxd3 {[%clk 0:00:47.1]}
66... Kb4 {[%clk 0:00:30.2]} 67. Kd2 {[%clk 0:00:48.7]} 67... Kc4 {[%clk
0:00:31.4]} 68. Ke2 {[%clk 0:00:50.1]} 68... Kd4 {[%clk 0:00:31.2]} 69. Kf3
{[%clk 0:00:52]} 69... Kd3 {[%clk 0:00:32.7]} 70. Kf2 {[%clk 0:00:53.9]} 70...
Kxe4 {[%clk 0:00:34.1]} 71. Ke2 {[%clk 0:00:55.8]} 71... Kd4 {[%clk 0:00:35.8]}
72. Kd2 {[%clk 0:00:56.2]} 72... Ke4 {[%clk 0:00:36.7]} 73. Ke2 {[%clk
0:00:57.5]} 73... Kf4 {[%clk 0:00:38.2]} 74. Kf2 {[%clk 0:00:59]} 74... Ke4
{[%clk 0:00:39.7]} 75. Ke2 {[%clk 0:01:00.5]} 75... Kd4 {[%clk 0:00:41.3]} 76.
Kd2 {[%clk 0:01:01.7]} 76... e4 {[%clk 0:00:43.2]} 77. Ke2 {[%clk 0:01:02.9]}
77... Ke5 {[%clk 0:00:44.7]} 78. Ke3 {[%clk 0:01:04.1]} 78... Kd5 {[%clk
0:00:46.6]} 79. Ke2 {[%clk 0:01:05.5]} 79... Kd4 {[%clk 0:00:48.5]} 80. Kd2
{[%clk 0:01:07.1]} 80... e3+ {[%clk 0:00:50.4]} 81. Ke2 {[%clk 0:01:08.6]} 81...
Ke4 {[%clk 0:00:52.3]} 82. Ke1 {[%clk 0:01:10.1]} 82... Kd4 {[%clk 0:00:53.4]}
83. Ke2 {[%clk 0:01:11.3]} 83... Ke4 {[%clk 0:00:54.3]} 84. Ke1 {[%clk
0:01:12.8]} 84... Kf4 {[%clk 0:00:55.4]} 85. Ke2 {[%clk 0:01:14.2]} 85... Ke4
{[%clk 0:00:56.9]} 86. Ke1 {[%clk 0:01:16.1]} 86... Kf3 {[%clk 0:00:58.8]} 87.
Kf1 {[%clk 0:01:17]} 87... Ke4 {[%clk 0:01:00.4]} 88. Ke2 {[%clk 0:01:18.6]}
88... Kd4 {[%clk 0:01:01.9]} 89. Ke1 {[%clk 0:01:20.5]} 89... Kd3 {[%clk
0:01:03.8]} 90. Kd1 {[%clk 0:01:21.9]} 90... Ke4 {[%clk 0:01:05.3]} 91. Ke2
{[%clk 0:01:23.2]} 91... Kf4 {[%clk 0:01:06.5]} 92. Ke1 {[%clk 0:01:25.1]} 92...
Kf3 {[%clk 0:01:07.9]} 93. Kf1 {[%clk 0:01:26.4]} 93... Ke4 {[%clk 0:01:09.2]}
94. Ke2 {[%clk 0:01:28.3]} 94... Kd4 {[%clk 0:01:10.5]} 95. Ke1 {[%clk
0:01:30.2]} 95... Kd3 {[%clk 0:01:12.4]} 96. Kd1 {[%clk 0:01:31.4]} 1/2-1/2

[Event "*** Titled Tuesday Blitz"]
[Site "Chess.com"]
[Date "2019.02.05"]
[Round "9"]
[White "Feegus"]
[Black "Agent-JL"]
[Result "0-1"]
[WhiteElo "2373"]
[BlackElo "2260"]
[TimeControl "180+2"]
[EndTime "15:16:13 PST"]
[Termination "Agent-JL won by resignation"]

1. d4 {[%clk 0:03:01.9]} 1... Nf6 {[%clk 0:02:56.6]} 2. Bf4 {[%clk 0:03:02.5]}
2... e6 {[%clk 0:02:52.7]} 3. e3 {[%clk 0:03:03.3]} 3... c5 {[%clk 0:02:53.5]}
4. c3 {[%clk 0:03:03.9]} 4... b6 {[%clk 0:02:54.3]} 5. Nd2 {[%clk 0:03:04.8]}
5... Bb7 {[%clk 0:02:55.9]} 6. Ngf3 {[%clk 0:03:05.6]} 6... d6 {[%clk
0:02:57.5]} 7. Bd3 {[%clk 0:03:06.8]} 7... cxd4 {[%clk 0:02:58.2]} 8. exd4
{[%clk 0:03:07.6]} 8... Be7 {[%clk 0:02:59.9]} 9. O-O {[%clk 0:03:08.7]} 9...
O-O {[%clk 0:03:01.5]} 10. h3 {[%clk 0:03:10]} 10... Re8 {[%clk 0:03:03.2]} 11.
Bh2 {[%clk 0:03:10.4]} 11... Nbd7 {[%clk 0:03:04.9]} 12. Re1 {[%clk 0:03:11.8]}
12... Nf8 {[%clk 0:03:06.3]} 13. a4 {[%clk 0:03:12.9]} 13... a6 {[%clk
0:03:07.2]} 14. Qb3 {[%clk 0:03:13.2]} 14... Ng6 {[%clk 0:03:08]} 15. Nc4 {[%clk
0:03:13.8]} 15... Nd5 {[%clk 0:03:08.9]} 16. Qa3 {[%clk 0:03:09.8]} 16... Ngf4
{[%clk 0:03:09]} 17. Bf1 {[%clk 0:03:09.1]} 17... b5 {[%clk 0:03:08.8]} 18. Ne3
{[%clk 0:03:09.4]} 18... Nxe3 {[%clk 0:02:52.9]} 19. Rxe3 {[%clk 0:03:10]} 19...
Nd5 {[%clk 0:02:52.9]} 20. Ree1 {[%clk 0:03:05.1]} 20... Qb6 {[%clk 0:02:49.6]}
21. Nd2 {[%clk 0:03:02.5]} 21... Rec8 {[%clk 0:02:43]} 22. a5 {[%clk 0:02:00.7]}
22... Qd8 {[%clk 0:02:29.1]} 23. Ne4 {[%clk 0:01:59.6]} 23... Rc6 {[%clk
0:02:21.4]} 24. g4 {[%clk 0:01:57]} 24... Rac8 {[%clk 0:02:12.5]} 25. Bg2 {[%clk
0:01:56.9]} 25... b4 {[%clk 0:02:01.7]} 26. cxb4 {[%clk 0:01:55.3]} 26... Rc4
{[%clk 0:02:02.3]} 27. b5 {[%clk 0:01:53.9]} 27... Nb4 {[%clk 0:02:01.3]} 28.
Nf6+ {[%clk 0:01:17.6]} 28... gxf6 {[%clk 0:02:00.9]} 29. Bxb7 {[%clk
0:01:19.1]} 29... Nc2 {[%clk 0:01:41.5]} 30. Qd3 {[%clk 0:00:50.4]} 30... Nxe1
{[%clk 0:01:40]} 31. Rxe1 {[%clk 0:00:50.7]} 31... Qxa5 {[%clk 0:01:34.2]} 32.
Re3 {[%clk 0:00:37.4]} 32... Qxb5 {[%clk 0:01:14.3]} 33. Bxc8 {[%clk 0:00:35.9]}
33... Rc1+ {[%clk 0:01:14.1]} 34. Kg2 {[%clk 0:00:35.2]} 34... Qc6+ {[%clk
0:01:14.8]} 35. d5 {[%clk 0:00:33.1]} 35... Qxc8 {[%clk 0:01:09.2]} 36. Qe4
{[%clk 0:00:25.2]} 36... e5 {[%clk 0:01:05.2]} 37. h4 {[%clk 0:00:21.5]} 37...
Rc4 {[%clk 0:01:03.6]} 38. Rc3 {[%clk 0:00:19.1]} 38... Rxc3 {[%clk 0:00:58.5]}
39. bxc3 {[%clk 0:00:19.6]} 39... Qxc3 {[%clk 0:01:00.4]} 40. h5 {[%clk
0:00:18.9]} 40... a5 {[%clk 0:00:56.8]} 41. h6 {[%clk 0:00:19.7]} 41... Qd2
{[%clk 0:00:53.7]} 42. Qa4 {[%clk 0:00:13.2]} 42... Qxd5+ {[%clk 0:00:54.1]} 43.
Kh3 {[%clk 0:00:10]} 43... Qf3+ {[%clk 0:00:51]} 44. Bg3 {[%clk 0:00:09.7]}
44... f5 {[%clk 0:00:50.5]} 45. gxf5 {[%clk 0:00:04.7]} 45... Qxf5+ {[%clk
0:00:47.3]} 46. Kg2 {[%clk 0:00:05.8]} 46... e4 {[%clk 0:00:32.8]} 47. Qe8+
{[%clk 0:00:05.2]} 47... Bf8 {[%clk 0:00:34.1]} 48. Bxd6 {[%clk 0:00:05.5]}
48... Qg6+ {[%clk 0:00:24.6]} 49. Bg3 {[%clk 0:00:06.6]} 49... a4 {[%clk
0:00:24.9]} 50. Qxa4 {[%clk 0:00:07.2]} 50... Bxh6 {[%clk 0:00:24.3]} 51. Qe8+
{[%clk 0:00:07]} 51... Bf8 {[%clk 0:00:25.5]} 52. Kf1 {[%clk 0:00:07.5]} 52...
h5 {[%clk 0:00:25.7]} 53. Bh4 {[%clk 0:00:08.2]} 53... Kg7 {[%clk 0:00:23.9]}
54. Qe5+ {[%clk 0:00:07.6]} 54... Kh7 {[%clk 0:00:25.3]} 55. Bf6 {[%clk
0:00:06.5]} 55... Qg4 {[%clk 0:00:21]} 56. Bg5 {[%clk 0:00:03.1]} 56... Bg7
{[%clk 0:00:18.9]} 57. Qe7 {[%clk 0:00:04]} 57... Qh3+ {[%clk 0:00:19.1]} 58.
Ke1 {[%clk 0:00:03.9]} 58... Qf3 {[%clk 0:00:18.6]} 59. Bd2 {[%clk 0:00:03.8]}
59... Qh1+ {[%clk 0:00:15.8]} 60. Ke2 {[%clk 0:00:04.5]} 60... Qf3+ {[%clk
0:00:15.8]} 61. Ke1 {[%clk 0:00:05.8]} 61... Bd4 {[%clk 0:00:17.4]} 62. Qh4
{[%clk 0:00:05.7]} 62... Bf6 {[%clk 0:00:16.7]} 63. Qh2 {[%clk 0:00:05.5]} 63...
Kg6 {[%clk 0:00:16.6]} 64. Qg1+ {[%clk 0:00:06.2]} 64... Kf5 {[%clk 0:00:18.1]}
65. Qh2 {[%clk 0:00:07.3]} 65... h4 {[%clk 0:00:18.5]} 66. Qd6 {[%clk
0:00:07.2]} 66... h3 {[%clk 0:00:19.2]} 67. Qd7+ {[%clk 0:00:08]} 67... Kg6
{[%clk 0:00:20.3]} 68. Bf4 {[%clk 0:00:05.3]} 68... Qxf4 {[%clk 0:00:18.1]} 69.
Qxh3 {[%clk 0:00:06.5]} 69... Bh4 {[%clk 0:00:18.4]} 70. Qg2+ {[%clk 0:00:05.9]}
70... Kf5 {[%clk 0:00:17]} 71. Qh3+ {[%clk 0:00:06.3]} 71... Ke5 {[%clk
0:00:16.1]} 72. Qc3+ {[%clk 0:00:07.3]} 72... Kf5 {[%clk 0:00:14.7]} 73. Qh3+
{[%clk 0:00:08.4]} 73... Kg6 {[%clk 0:00:16.3]} 74. Qg2+ {[%clk 0:00:08.7]}
74... Kh6 {[%clk 0:00:17.9]} 75. Ke2 {[%clk 0:00:08.2]} 75... Qxf2+ {[%clk
0:00:15.7]} 76. Qxf2 {[%clk 0:00:09.5]} 76... Bxf2 {[%clk 0:00:17.6]} 77. Kxf2
{[%clk 0:00:11.4]} 77... f5 {[%clk 0:00:17]} 78. Ke3 {[%clk 0:00:13.3]} 78...
Kg5 {[%clk 0:00:18.7]} 0-1

[Event "*** Titled Tuesday Blitz"]
[Site "Chess.com"]
[Date "2019.02.05"]
[Round "9"]
[White "dmosesov"]
[Black "HanSchut"]
[Result "1-0"]
[WhiteElo "2355"]
[BlackElo "2299"]
[TimeControl "180+2"]
[EndTime "15:16:52 PST"]
[Termination "dmosesov won by resignation"]

1. Nf3 {[%clk 0:03:01.9]} 1... c5 {[%clk 0:02:59.8]} 2. e4 {[%clk 0:03:02.4]}
2... d6 {[%clk 0:02:59.1]} 3. d4 {[%clk 0:03:03.4]} 3... cxd4 {[%clk 0:03:01]}
4. Nxd4 {[%clk 0:03:05.3]} 4... Nf6 {[%clk 0:03:02.2]} 5. Nc3 {[%clk 0:03:06.9]}
5... a6 {[%clk 0:03:03.5]} 6. Bg5 {[%clk 0:03:07.7]} 6... e6 {[%clk 0:03:04]} 7.
f4 {[%clk 0:03:08.5]} 7... Be7 {[%clk 0:03:05.4]} 8. Qe2 {[%clk 0:03:08]} 8...
h6 {[%clk 0:03:03]} 9. Bxf6 {[%clk 0:03:09.1]} 9... Bxf6 {[%clk 0:03:03.8]} 10.
O-O-O {[%clk 0:03:10.7]} 10... Qb6 {[%clk 0:03:04.4]} 11. e5 {[%clk 0:03:08.1]}
11... dxe5 {[%clk 0:02:59.7]} 12. fxe5 {[%clk 0:03:10]} 12... Be7 {[%clk
0:02:52.9]} 13. Qg4 {[%clk 0:02:56.6]} 13... g6 {[%clk 0:02:42.3]} 14. Bd3
{[%clk 0:02:45.3]} 14... Nc6 {[%clk 0:02:31.1]} 15. Nxc6 {[%clk 0:02:30.4]}
15... Qxc6 {[%clk 0:02:28]} 16. Kb1 {[%clk 0:02:24.8]} 16... h5 {[%clk
0:02:13.6]} 17. Qg3 {[%clk 0:02:23]} 17... h4 {[%clk 0:01:48.8]} 18. Qg4 {[%clk
0:02:22.1]} 18... Rg8 {[%clk 0:01:35.5]} 19. Rhf1 {[%clk 0:02:18]} 19... Bd7
{[%clk 0:01:35.2]} 20. Qf4 {[%clk 0:01:52]} 20... Rg7 {[%clk 0:01:31.1]} 21. Qh6
{[%clk 0:01:39.2]} 21... Bf8 {[%clk 0:01:17.4]} 22. Qxh4 {[%clk 0:01:34.6]}
22... Be7 {[%clk 0:01:14]} 23. Qh8+ {[%clk 0:01:31.5]} 23... Bf8 {[%clk
0:01:15.2]} 24. Be4 {[%clk 0:01:31.3]} 24... Qc7 {[%clk 0:01:04.8]} 25. Qh4
{[%clk 0:01:08.8]} 25... Be7 {[%clk 0:00:59]} 26. Qh6 {[%clk 0:01:09.7]} 26...
Bf8 {[%clk 0:00:54.8]} 27. Qe3 {[%clk 0:00:57.7]} 27... O-O-O {[%clk 0:00:46.1]}
28. Qa7 {[%clk 0:00:35.6]} 28... Bc5 {[%clk 0:00:24.3]} 29. Bxb7+ {[%clk
0:00:17.8]} 29... Qxb7 {[%clk 0:00:26.2]} 30. Qxc5+ {[%clk 0:00:19.7]} 30... Kb8
{[%clk 0:00:24.5]} 31. Qe7 {[%clk 0:00:15.7]} 31... Rgg8 {[%clk 0:00:17]} 32.
Rf4 {[%clk 0:00:10.2]} 32... Bc6 {[%clk 0:00:12.5]} 33. Rb4 {[%clk 0:00:09.7]}
33... Bb5 {[%clk 0:00:11.4]} 34. Qxb7+ {[%clk 0:00:10.5]} 34... Kxb7 {[%clk
0:00:11.4]} 35. a4 {[%clk 0:00:12.4]} 35... Kc6 {[%clk 0:00:05.8]} 36. axb5+
{[%clk 0:00:13.6]} 36... axb5 {[%clk 0:00:07.3]} 37. Rxb5 {[%clk 0:00:15.5]}
37... Rxd1+ {[%clk 0:00:06.7]} 38. Nxd1 {[%clk 0:00:17]} 38... Kxb5 {[%clk
0:00:08.4]} 39. Ne3 {[%clk 0:00:15.3]} 39... Kc5 {[%clk 0:00:08.8]} 40. c3
{[%clk 0:00:16.6]} 40... Rd8 {[%clk 0:00:08.2]} 41. Kc2 {[%clk 0:00:17.1]} 41...
Ra8 {[%clk 0:00:07.1]} 42. b4+ {[%clk 0:00:19]} 42... Kc6 {[%clk 0:00:07.3]} 43.
Ng4 {[%clk 0:00:14.8]} 43... Ra2+ {[%clk 0:00:08.4]} 44. Kd3 {[%clk 0:00:16.2]}
44... Rxg2 {[%clk 0:00:08]} 45. Nh6 {[%clk 0:00:17.7]} 45... Rf2 {[%clk
0:00:07.8]} 46. c4 {[%clk 0:00:18.4]} 46... Rf3+ {[%clk 0:00:06.3]} 47. Ke4
{[%clk 0:00:18.7]} 47... Rf1 {[%clk 0:00:06.7]} 48. h4 {[%clk 0:00:18.3]} 48...
Kd7 {[%clk 0:00:06.7]} 49. Ng4 {[%clk 0:00:18.6]} 49... Rb1 {[%clk 0:00:05.8]}
50. b5 {[%clk 0:00:19.4]} 50... Rg1 {[%clk 0:00:04.7]} 51. Nf6+ {[%clk
0:00:19.9]} 51... Ke7 {[%clk 0:00:06.3]} 52. b6 {[%clk 0:00:20.9]} 52... Rb1
{[%clk 0:00:06.3]} 53. c5 {[%clk 0:00:22.2]} 53... Rb5 {[%clk 0:00:06.2]} 54.
Kd4 {[%clk 0:00:23.4]} 54... Rb4+ {[%clk 0:00:07.1]} 55. Kc3 {[%clk 0:00:18.2]}
55... Rb1 {[%clk 0:00:08.1]} 56. Kc4 {[%clk 0:00:17.8]} 56... Rc1+ {[%clk
0:00:04.5]} 57. Kb5 {[%clk 0:00:18.8]} 57... Rb1+ {[%clk 0:00:05.8]} 58. Kc6
{[%clk 0:00:20.2]} 58... Kf8 {[%clk 0:00:04]} 59. b7 {[%clk 0:00:20.7]} 59...
Ke7 {[%clk 0:00:04.1]} 60. Kc7 {[%clk 0:00:21.8]} 60... Rb5 {[%clk 0:00:05]} 61.
c6 {[%clk 0:00:22.9]} 61... Rxe5 {[%clk 0:00:05]} 62. b8=Q {[%clk 0:00:24.1]}
62... Kxf6 {[%clk 0:00:06.9]} 63. Qd8+ {[%clk 0:00:22.9]} 63... Kg7 {[%clk
0:00:08]} 64. Qd4 {[%clk 0:00:24.1]} 64... f6 {[%clk 0:00:08.6]} 65. Kb6 {[%clk
0:00:22.3]} 65... Re1 {[%clk 0:00:06.1]} 66. c7 {[%clk 0:00:22.1]} 66... Rb1+
{[%clk 0:00:08]} 67. Kc6 {[%clk 0:00:23.4]} 67... Rc1+ {[%clk 0:00:09.4]} 68.
Kd7 {[%clk 0:00:24.9]} 68... e5 {[%clk 0:00:10.6]} 69. Qd6 {[%clk 0:00:26.1]}
69... e4 {[%clk 0:00:09.7]} 70. c8=Q {[%clk 0:00:27.8]} 70... Rxc8 {[%clk
0:00:11.1]} 71. Kxc8 {[%clk 0:00:29.7]} 71... f5 {[%clk 0:00:12.6]} 72. Qe5+
{[%clk 0:00:29.9]} 72... Kh6 {[%clk 0:00:14.5]} 73. Kd7 {[%clk 0:00:31.5]} 73...
Kh5 {[%clk 0:00:15.5]} 74. Qf6 {[%clk 0:00:31.8]} 74... Kg4 {[%clk 0:00:14.5]}
75. Qg5+ {[%clk 0:00:31]} 75... Kf3 {[%clk 0:00:16.4]} 76. Qxg6 {[%clk
0:00:32.4]} 76... f4 {[%clk 0:00:15.5]} 77. Ke6 {[%clk 0:00:32.3]} 77... e3
{[%clk 0:00:16.8]} 78. Kf5 {[%clk 0:00:31.7]} 78... e2 {[%clk 0:00:18]} 79. Qg4+
{[%clk 0:00:32.9]} 79... Kf2 {[%clk 0:00:17.7]} 80. Qxf4+ {[%clk 0:00:34.8]}
80... Kg1 {[%clk 0:00:18.8]} 81. Qe3+ {[%clk 0:00:35.6]} 81... Kf1 {[%clk
0:00:18.8]} 82. Qf3+ {[%clk 0:00:36.8]} 82... Kg1 {[%clk 0:00:19.2]} 83. Qxe2
{[%clk 0:00:37.2]} 83... Kh1 {[%clk 0:00:21.1]} 1-0

[Event "*** Titled Tuesday Blitz"]
[Site "Chess.com"]
[Date "2019.02.05"]
[Round "9"]
[White "masrahi"]
[Black "King_of_the_wing"]
[Result "0-1"]
[WhiteElo "1845"]
[BlackElo "2186"]
[TimeControl "180+2"]
[EndTime "15:16:52 PST"]
[Termination "King_of_the_wing won on time"]

1. c4 {[%clk 0:03:01.9]} 1... e5 {[%clk 0:02:59.7]} 2. Nc3 {[%clk 0:03:02.3]}
2... d6 {[%clk 0:03:00.8]} 3. Nf3 {[%clk 0:03:02.4]} 3... f5 {[%clk 0:03:01.5]}
4. d4 {[%clk 0:03:02.2]} 4... e4 {[%clk 0:03:02.8]} 5. Ng5 {[%clk 0:03:02.9]}
5... Be7 {[%clk 0:02:57.2]} 6. h4 {[%clk 0:02:41.2]} 6... h6 {[%clk 0:02:56.1]}
7. Nh3 {[%clk 0:02:41.3]} 7... e3 {[%clk 0:02:46.5]} 8. Bxe3 {[%clk 0:02:32.8]}
8... Bxh4 {[%clk 0:02:37.2]} 9. Nf4 {[%clk 0:02:33.4]} 9... Bf6 {[%clk
0:02:13.1]} 10. Ng6 {[%clk 0:02:23.1]} 10... Rh7 {[%clk 0:02:14.4]} 11. Bc1
{[%clk 0:01:48.1]} 11... Ne7 {[%clk 0:02:09]} 12. Nf4 {[%clk 0:01:40.5]} 12...
g5 {[%clk 0:01:40.2]} 13. Nh5 {[%clk 0:01:33.2]} 13... Bh8 {[%clk 0:01:38.5]}
14. e3 {[%clk 0:01:08.4]} 14... Be6 {[%clk 0:01:18.3]} 15. b3 {[%clk 0:01:03.8]}
15... c5 {[%clk 0:01:13.1]} 16. Bb2 {[%clk 0:01:04]} 16... cxd4 {[%clk
0:01:12.3]} 17. exd4 {[%clk 0:01:02.9]} 17... Nd7 {[%clk 0:01:02.7]} 18. Nb5
{[%clk 0:00:46.3]} 18... Qb6 {[%clk 0:00:49.9]} 19. Qd2 {[%clk 0:00:34.8]} 19...
a6 {[%clk 0:00:44.6]} 20. Na3 {[%clk 0:00:30.5]} 20... O-O-O {[%clk 0:00:38.8]}
21. O-O-O {[%clk 0:00:26.1]} 21... d5 {[%clk 0:00:25.7]} 22. c5 {[%clk
0:00:21.6]} 22... Qc7 {[%clk 0:00:26.6]} 23. Kb1 {[%clk 0:00:21.6]} 23... Nf6
{[%clk 0:00:20.5]} 24. Nxf6 {[%clk 0:00:21.7]} 24... Bxf6 {[%clk 0:00:21.1]} 25.
Nc2 {[%clk 0:00:22.8]} 25... f4 {[%clk 0:00:20.1]} 26. f3 {[%clk 0:00:22.2]}
26... Bf5 {[%clk 0:00:21.2]} 27. Bd3 {[%clk 0:00:23.2]} 27... Qd7 {[%clk
0:00:22.5]} 28. Nb4 {[%clk 0:00:22.1]} 28... a5 {[%clk 0:00:21.1]} 29. Nc2
{[%clk 0:00:20.5]} 29... Bxd3 {[%clk 0:00:21.1]} 30. Qxd3 {[%clk 0:00:22.4]}
30... Nf5 {[%clk 0:00:21.3]} 31. Qd2 {[%clk 0:00:21.5]} 31... Ng3 {[%clk
0:00:21.9]} 32. Rhe1 {[%clk 0:00:21]} 32... Qf5 {[%clk 0:00:23.1]} 33. Qxa5
{[%clk 0:00:20.5]} 33... Re7 {[%clk 0:00:18.1]} 34. Ka1 {[%clk 0:00:21.3]} 34...
Qxc2 {[%clk 0:00:16.4]} 35. Qa8+ {[%clk 0:00:21.6]} 35... Kc7 {[%clk 0:00:15.4]}
36. Rxe7+ {[%clk 0:00:21.4]} 36... Bxe7 {[%clk 0:00:15.7]} 37. Qa5+ {[%clk
0:00:22.1]} 37... Kb8 {[%clk 0:00:17.1]} 38. Re1 {[%clk 0:00:21.7]} 38... Ne2
{[%clk 0:00:15.8]} 39. Qb6 {[%clk 0:00:18]} 39... Rc8 {[%clk 0:00:12.1]} 40. Qb5
{[%clk 0:00:17.7]} 40... Bf6 {[%clk 0:00:11.9]} 41. Qxe2 {[%clk 0:00:18.2]}
41... Qxe2 {[%clk 0:00:11.7]} 42. Rxe2 {[%clk 0:00:20.1]} 42... Rc7 {[%clk
0:00:10.4]} 43. Re6 {[%clk 0:00:19.9]} 43... Re7 {[%clk 0:00:10.3]} 44. Rxe7
{[%clk 0:00:19.6]} 44... Bxe7 {[%clk 0:00:11.1]} 45. Kb1 {[%clk 0:00:21.1]}
45... Kc7 {[%clk 0:00:12.1]} 46. Kc2 {[%clk 0:00:22.6]} 46... Kc6 {[%clk
0:00:13.6]} 47. Kd3 {[%clk 0:00:24.1]} 47... Bf6 {[%clk 0:00:14.1]} 48. Ba3
{[%clk 0:00:22.6]} 48... h5 {[%clk 0:00:12.3]} 49. Bc1 {[%clk 0:00:19.9]} 49...
Be7 {[%clk 0:00:12.8]} 50. Bd2 {[%clk 0:00:20.4]} 50... b6 {[%clk 0:00:13.2]}
51. b4 {[%clk 0:00:21.6]} 51... bxc5 {[%clk 0:00:14.2]} 52. bxc5 {[%clk
0:00:22.4]} 52... Bd8 {[%clk 0:00:12.6]} 53. Be1 {[%clk 0:00:23.6]} 53... g4
{[%clk 0:00:11.9]} 54. fxg4 {[%clk 0:00:23.9]} 54... hxg4 {[%clk 0:00:12.9]} 55.
g3 {[%clk 0:00:23.4]} 55... f3 {[%clk 0:00:10.7]} 56. Ke3 {[%clk 0:00:24.1]}
56... Bg5+ {[%clk 0:00:11.6]} 57. Kd3 {[%clk 0:00:23.4]} 57... Kb5 {[%clk
0:00:12.7]} 58. Bd2 {[%clk 0:00:17.3]} 58... f2 {[%clk 0:00:12.7]} 59. Ke2
{[%clk 0:00:12.3]} 59... f1=Q+ {[%clk 0:00:11.8]} 60. Kxf1 {[%clk 0:00:13]}
60... Bxd2 {[%clk 0:00:12.9]} 61. Ke2 {[%clk 0:00:14]} 61... Bc3 {[%clk
0:00:13.3]} 62. Kd3 {[%clk 0:00:15]} 62... Be1 {[%clk 0:00:14.4]} 63. Kc2 {[%clk
0:00:12.2]} 63... Bxg3 {[%clk 0:00:14.6]} 64. Kd3 {[%clk 0:00:12.3]} 64... Bf4
{[%clk 0:00:11.7]} 65. Ke2 {[%clk 0:00:12.3]} 65... Kc6 {[%clk 0:00:09.2]} 66.
Kf2 {[%clk 0:00:13.1]} 66... Kb5 {[%clk 0:00:09.9]} 67. Kg2 {[%clk 0:00:14]}
67... Ka4 {[%clk 0:00:10.8]} 68. Kf2 {[%clk 0:00:07.8]} 68... Ka3 {[%clk
0:00:11.8]} 69. c6 {[%clk 0:00:07]} 69... Kxa2 {[%clk 0:00:12.7]} 70. c7 {[%clk
0:00:06.1]} 70... Bxc7 {[%clk 0:00:13.6]} 71. Ke3 {[%clk 0:00:07.4]} 71... Kb3
{[%clk 0:00:14.3]} 72. Kf2 {[%clk 0:00:08.4]} 72... Kc3 {[%clk 0:00:14.7]} 73.
Kg2 {[%clk 0:00:09.1]} 73... Kxd4 {[%clk 0:00:15.2]} 74. Kf2 {[%clk 0:00:09.8]}
74... Ke4 {[%clk 0:00:16.2]} 0-1